fUSD/lending_fUSD_20241022
["ID","MTS","AMOUNT","RATE_DAILY","PERIOD"]
[340634008,1729561842416,-296.30374202,0.00057287,120]
[340634009,1729561842427,-492.94056105,0.00057287,120]
[340634010,1729561842438,-7.05943895,0.00057287,120]
[340634011,1729561842448,-500.0,0.00057349,120]
[340634012,1729561842458,-24.18286495,0.00057399,30]
[340634013,1729561842500,-1101.41355836,0.00057399,30]
[340634014,1729561842510,-1062.52685026,0.00057399,30]
[340634015,1729561842519,-151.0,0.00057425,120]
[340634016,1729561842528,-500.0,0.00057479,120]
[340634017,1729561842538,-500.0,0.00057479,120]
[340634018,1729561842547,-1040.35,0.00057479,120]
[340634019,1729561842557,-1245.46,0.00057479,120]
[340634020,1729561842567,-680.09,0.00057479,120]
[340634021,1729561842576,-500.0,0.00057479,120]
[340634022,1729561842586,-360.8791742,0.00057479,120]
[340634023,1729561842957,-138.65189409,0.00057479,120]
[340634024,1729561842969,-198.46893171,0.00057479,120]
[340634025,1729561842979,-500.0,0.00057479,120]
[340634026,1729561842988,-1196.54609695,0.0005753,120]
[340634027,1729561842998,-685.43,0.00057534,120]
[340634028,1729561843008,-685.43,0.00057534,120]
[340634029,1729561843018,-685.43,0.00057534,120]
[340634030,1729561843028,-685.43,0.00057534,120]
[340634031,1729561843038,-685.43,0.00057534,120]
[340634032,1729561843049,-685.43,0.00057534,120]
[340634033,1729561843059,-685.43,0.00057534,120]
[340634034,1729561843069,-685.43,0.00057534,120]
[340634035,1729561843079,-685.43,0.00057534,120]
[340634036,1729561843088,-685.43,0.00057534,120]
[340634037,1729561843100,-685.43,0.00057534,120]
[340634038,1729561843109,-685.43,0.00057534,120]
[340634039,1729561843119,-685.43,0.00057534,120]
[340634040,1729561843130,-685.43,0.00057534,120]
[340634041,1729561843139,-179.6750393,0.00057534,120]
[340634042,1729561843152,-505.7549607,0.00057534,120]
[340634043,1729561843162,-685.43,0.00057534,120]
[340634044,1729561843172,-685.43,0.00057534,120]
[340634045,1729561843182,-685.43,0.00057534,120]
[340634046,1729561843191,-685.43,0.00057534,120]
[340634047,1729561843201,-685.43,0.00057534,120]
[340634048,1729561843211,-685.43,0.00057534,120]
[340634050,1729561843221,-685.43,0.00057534,120]
[340634051,1729561843230,-685.43,0.00057534,120]
[340634052,1729561843241,-685.44514129,0.00057534,120]
[340634053,1729561843251,-500.0,0.00057541,120]
[340634054,1729561843261,-500.0,0.00057671,120]
[340634055,1729561843271,-500.0,0.00057671,120]
[340634056,1729561843281,-1040.35,0.00057671,120]
[340634057,1729561843291,-1245.46,0.00057671,120]
[340634058,1729561843301,-680.09,0.00057671,120]
[340634059,1729561843310,-493.1283578,0.00057671,120]
[340634060,1729561843320,-698.0,0.00057671,120]
[340634061,1729561843330,-500.0,0.00057671,120]
[340634062,1729561843341,-500.0,0.00057733,120]
[340634063,1729561843351,-500.0,0.00057863,120]
[340634064,1729561843360,-500.0,0.00057863,120]
[340634065,1729561843369,-1040.35,0.00057863,120]
[340634066,1729561843379,-1245.46,0.00057863,120]
[340634067,1729561843388,-680.09,0.00057863,120]
[340634068,1729561843397,-698.0,0.00057863,120]
[340634069,1729561843408,-500.0,0.00057863,120]
[340634070,1729561843418,-198.34121119,0.00057867,120]
[340634071,1729561843431,-29635.74,0.00057871,120]
[340634072,1729561843442,-500.0,0.00057924,120]
[340634073,1729561843452,-500.0,0.00058054,120]
[340634074,1729561843462,-500.0,0.00058054,120]
[340634075,1729561843473,-1040.35,0.00058054,120]
[340634076,1729561843485,-1245.46,0.00058054,120]
[340634077,1729561843496,-680.09,0.00058054,120]
[340634078,1729561843506,-698.0,0.00058054,120]
[340634079,1729561843516,-500.0,0.00058054,120]
[340634080,1729561843527,-500.0,0.00058116,120]
[340634081,1729561843538,-500.0,0.00058246,120]
[340634082,1729561843548,-176.43783219,0.00058246,120]
[340634083,1729561843558,-1040.35,0.00058246,120]
[340634084,1729561843568,-1245.46,0.00058246,120]
[340634085,1729561843578,-680.09,0.00058246,120]
[340634086,1729561843588,-698.0,0.00058246,120]
[340634087,1729561843598,-500.0,0.00058246,120]
[340634088,1729561843607,-500.0,0.00058308,120]
[340634089,1729561843616,-2960.885,0.00058317,78]
[340634090,1729561843626,-1388.6303,0.00058357,2]
[340634091,1729561843636,-312.87826921,0.00058438,120]
[340634092,1729561843646,-1040.35,0.00058438,120]
[340634093,1729561843655,-1245.46,0.00058438,120]
[340634094,1729561843665,-680.09,0.00058438,120]
[340634095,1729561843675,-698.0,0.00058438,120]
[340634096,1729561843684,-500.0,0.00058438,120]
[340634097,1729561843694,-180.38713943,0.0005847,120]
[340634098,1729561843704,-150.375719,0.0005847,28]
[340634099,1729561843713,-247.0651163,0.0005848,120]
[340634100,1729561843723,-412.0,0.00058486,120]
[340634101,1729561843733,-884.05023927,0.00058486,120]
[340634102,1729561843742,-500.0,0.000585,120]
[340634103,1729561843752,-316.0,0.000585,120]
[340634104,1729561843762,-150.0,0.00058515,30]
[340634105,1729561843771,-174.40529783,0.00058534,14]
[340634106,1729561843781,-2692.43765771,0.00058559,120]
[340634107,1729561843792,-10000.0,0.00058568,60]
[340634108,1729561843802,-12537.25616451,0.00058568,60]
[340634109,1729561843814,-502.49888056,0.00058568,60]
[340634110,1729561843826,-1469.6911387,0.00058568,60]
[340634111,1729561843909,-18846.52910912,0.00058568,60]
[340634112,1729561843922,-18030.00012,0.00058568,60]
[340634113,1729561843933,-493.035,0.00058568,60]
[340634114,1729561843945,-2923.62999489,0.00058568,60]
[340634115,1729561843963,-431.0,0.00053415,7]
[340634116,1729561843973,-165.25,0.00058568,60]
[340634118,1729561844751,-55583.53243187,0.00058568,60]
[340634119,1729561844764,-1016.18242901,0.00058568,60]
[340634120,1729561844776,-789.11551497,0.00058568,60]
[340634121,1729561844789,-38109.53175681,0.00058568,60]
[340634122,1729561844801,-17425.3167448,0.00058568,60]
[340634123,1729561844813,-16268.07293523,0.00058568,60]
[340634124,1729561846261,-677.08869284,0.0005847,2]
[340634125,1729561846272,-351.04989849,0.0005847,2]
[340634126,1729561846283,-278.535,0.0005847,2]
[340634127,1729561846294,-349.41293915,0.0005847,2]
[340634128,1729561846303,-1370.16246085,0.00058568,60]
[340634129,1729561846314,-1265.7180138,0.00058568,60]
[340634130,1729561846398,-856.20926424,0.00058568,60]
[340634131,1729561846409,-719.95798759,0.00058568,60]
[340634132,1729561846423,-779.46259794,0.00058568,60]
[340634133,1729561846433,-3702.4455131,0.00058568,60]
[340634134,1729561846444,-1989.13398519,0.00058568,60]
[340634135,1729561846455,-1738.65683606,0.00058568,60]
[340634136,1729561846467,-1621.72231958,0.00058568,60]
[340634137,1729561846477,-2452.83400566,0.00058568,60]
[340634138,1729561846489,-15283.75980074,0.00058568,60]
[340634139,1729561846502,-9831.76687634,0.00058568,60]
[340634140,1729561846512,-8179.73972213,0.00058568,60]
[340634141,1729561846524,-549.96057904,0.00058568,60]
[340634142,1729561846536,-912.34615092,0.00058568,60]
[340634143,1729561846548,-8087.13699493,0.00058568,60]
[340634144,1729561846560,-345.23132772,0.00058568,60]
[340634146,1729561846571,-2709.03931074,0.00058568,60]
[340634147,1729561846582,-361.14764114,0.00058568,60]
[340634148,1729561846593,-355.32050469,0.00058568,60]
[340634150,1729561922497,250.0,0.0001,2]
[340634151,1729562257123,-165.82,0.00010959,2]
[340634152,1729562257144,-599.91240626,0.000119,2]
[340634153,1729562257167,-150.0,0.00011989,2]
[340634154,1729562257188,-300.0,0.00012,2]
[340634155,1729562257210,-599.91240624,0.000129,2]
[340634156,1729562257231,-599.91240624,0.000139,2]
[340634157,1729562257253,-350.0,0.00014,2]
[340634159,1729562371229,-400.0,0.00016,2]
[340634160,1729562371250,-504.0,0.000162,2]
[340634161,1729562371271,-232.5096,0.000179,2]
[340634162,1729562371292,-450.0,0.00018,2]
[340634163,1729562371313,-191.695208,0.000199,2]
[340634164,1729562371334,-500.0,0.0002,2]
[340634165,1729562371355,-18108.12,0.0002,2]
[340634166,1729562371375,-150.99,0.0002,2]
[340634167,1729562430574,150.0,0.0002,2]
[340634189,1729562980683,5953.47051647,0.00025,120]
[340634191,1729563032560,-550.0,0.00022,2]
[340634192,1729563032572,-177.0906288,0.00024,2]
[340634193,1729563032584,-422.9093712,0.00024,2]
[340634194,1729563032595,-435.25453833,0.00026,2]
[340634195,1729563032607,-214.74546167,0.00026,2]
[340634196,1729563032617,-1445.316,0.00028484,19]
[340634197,1729563032629,-176.219,0.00028484,19]
[340634198,1729563032639,-165.82,0.00031963,2]
[340634199,1729563032650,-70.23685396,0.00043539,2]
[340634200,1729563032664,-100.72314604,0.00043539,2]
[340634201,1729563032674,-150.0,0.00044,120]
[340634202,1729563032686,-662.17957383,0.000459,120]
[340634203,1729563032697,-150.99,0.000459,2]
[340634204,1729563032707,-499.99,0.000459,2]
[340634205,1729563032717,-150.0,0.00046,120]
[340634206,1729563032727,-150.0,0.00048,120]
[340634207,1729563032738,-1445.317,0.00048863,84]
[340634208,1729563032749,-150.0,0.0005,120]
[340634209,1729563032759,-1000.0,0.00051057,120]
[340634210,1729563032769,-1006.0,0.000526,7]
[340634211,1729563032780,-163.85,0.00052627,2]
[340634212,1729563032790,-165.82,0.00052968,2]
[340634213,1729563032800,-200.0,0.00054,120]
[340634214,1729563032811,-183.75,0.00054052,120]
[340634215,1729563032826,-254.67,0.00054079,2]
[340634216,1729563032836,-250.0,0.00054291,120]
[340634217,1729563032846,-70.94442213,0.00054347,2]
[340634218,1729563032859,-93.68557787,0.00054347,2]
[340634219,1729563032869,-1644.45156015,0.00054403,30]
[340634220,1729563032883,-453.51,0.00054403,30]
[340634221,1729563032897,-355.41834579,0.00054403,30]
[340634222,1729563032910,-807.51009406,0.00054403,30]
[340634223,1729563032921,-250.0,0.00054418,120]
[340634224,1729563032930,-150.0,0.00054424,2]
[340634225,1729563032941,-161.14,0.00054459,120]
[340634226,1729563032951,-250.0,0.00054483,120]
[340634227,1729563032961,-156.11,0.00054508,2]
[340634228,1729563032972,-199.84,0.00054513,120]
[340634229,1729563032983,-2014.85704111,0.00054544,2]
[340634230,1729563032995,-13495.05892328,0.00054544,2]
[340634234,1729563038521,-5685.12943716,0.00054544,2]
[340634235,1729563038535,-292.06168764,0.00054544,2]
[340634236,1729563038548,-425.4,0.00054544,2]
[340634237,1729563038560,-1987.49291081,0.00054544,2]
[340634238,1729563038571,-500.0,0.00054794,120]
[340634239,1729563038581,-1000.0,0.00054794,120]
[340634240,1729563038593,-500.0,0.00054795,120]
[340634241,1729563038603,-500.0,0.00054795,120]
[340634242,1729563038613,-500.0,0.00054795,120]
[340634243,1729563038623,-201.95387682,0.00054795,120]
[340634244,1729563038636,-298.04612318,0.00054795,120]
[340634245,1729563038647,-500.0,0.00054795,120]
[340634246,1729563038798,-500.0,0.00054986,120]
[340634247,1729563038810,-1000.0,0.00054986,120]
[340634248,1729563038823,-500.0,0.00055178,120]
[340634249,1729563038833,-610.58903022,0.00055178,120]
[340634250,1729563038845,-389.41096978,0.00055178,120]
[340634251,1729563038854,-335.56087023,0.00055369,120]
[340634252,1729563038866,-164.43912977,0.00055369,120]
[340634253,1729563038875,-1000.0,0.00055369,120]
[340634254,1729563038884,-500.0,0.00055561,120]
[340634255,1729563038896,-982.07949006,0.00055561,120]
[340634256,1729563038907,-500.0,0.00055753,120]
[340634257,1729563038916,-500.0,0.00055945,120]
[340634259,1729563038926,-200.0,0.00056,120]
[340634261,1729563038935,-500.0,0.00056136,120]
[340634263,1729563038945,-161.53733554,0.00056328,120]
[340634265,1729563038955,-307.82309271,0.00057397,30]
[340634268,1729563038970,-10729.9312,0.00045,15]
[340634270,1729563038982,-1503.10643675,0.00045,15]
[340634272,1729563038993,-67890.63832068,0.00045,15]
[340634274,1729563039006,-17297.1707922,0.00045,15]
[340634277,1729563039017,-252.04997519,0.00045,15]
[340634279,1729563039029,-1404.907785,0.00045,15]
[340634281,1729563039041,-555.11300412,0.00045,15]
[340634283,1729563039052,-6612.25158562,0.00045,15]
[340634285,1729563039063,-21299.78162,0.00045,15]
[340634287,1729563039074,-17959.49412149,0.00045,15]
[340634289,1729563039085,-790.59977566,0.00057397,30]
[340634291,1729563039094,-1051.8399317,0.00057397,30]
[340634293,1729563039104,-163.85,0.00057406,2]
[340634295,1729563039113,-1000.0,0.00057439,120]
[340634297,1729563039123,-524.40534187,0.0005753,120]
[340634299,1729563039132,-186.33,0.00057876,120]
[340634301,1729563039142,-500.0,0.00058,120]
[340634303,1729563039152,-400.12537631,0.00058275,10]
[340634305,1729563039162,-597.0614,0.00058368,2]
[340634307,1729563039172,-3455.8717,0.00058368,2]
[340634309,1729563039182,-1302.0579,0.00058368,2]
[340634311,1729563039191,-4406.3595,0.00058368,2]
[340634313,1729563039200,-3993.7425,0.00058368,2]
[340634315,1729563039209,-829.7786,0.00058368,2]
[340634317,1729563039219,-2500.0,0.00058368,2]
[340634319,1729563039229,-2515.0683,0.00058368,2]
[340634321,1729563039239,-360.0423,0.00058368,2]
[340634322,1729563039247,-5193.58173325,0.00058368,15]
[340634323,1729563039256,-376.33081639,0.00058466,31]
[340634325,1729563039265,-500.0,0.00058466,120]
[340634327,1729563039277,-500.0,0.00058466,120]
[340634328,1729563039287,-170.04298534,0.00058466,120]
[340634329,1729563039296,-500.0,0.00058467,120]
[340634330,1729563039306,-564.59,0.00058467,120]
[340634331,1729563039316,-500.0,0.00058467,120]
[340634332,1729563039325,-971515.09969248,0.00058467,120]
[340634333,1729563040366,-8865.05047589,0.00058467,120]
[340634334,1729563040378,-1130.54686907,0.00058467,120]
[340634336,1729563040579,-2090.40897658,0.00058467,120]
[340634337,1729563040591,-412.39,0.00058467,120]
[340634338,1729563040602,-337.82258265,0.00058467,120]
[340634339,1729563040614,-3346.51492641,0.00058467,120]
[340634340,1729563040624,-398.415,0.00058467,120]
[340634341,1729563040636,-23064.68400395,0.00058467,120]
[340634342,1729563040648,-4302.89567398,0.00058467,120]
[340634343,1729563040790,-372.50946649,0.00058467,120]
[340634345,1729563040802,-1014.92768583,0.00058467,120]
[340634347,1729563040813,-449.03088406,0.00058467,120]
[340634350,1729563040828,-685.08301683,0.00058467,120]
[340634352,1729563040840,-418.43404489,0.00058467,120]
[340634354,1729563040851,-21033.57546785,0.00058467,120]
[340634372,1729563041018,-13423.65720238,0.00058467,120]
[340634374,1729563041030,-94441.16357893,0.00058467,120]
[340634380,1729563043539,-17268.42652662,0.00058467,120]
[340634381,1729563043551,-369.9681725,0.00058467,120]
[340634382,1729563043562,-676.26,0.00058467,120]
[340634383,1729563043573,-451.22072221,0.00058467,120]
[340634384,1729563043584,-707.11127029,0.00058467,120]
[340634385,1729563043595,-6560.72660935,0.00058467,120]
[340634386,1729563043695,-2739.21502541,0.00058467,120]
[340634387,1729563043706,-254.83465472,0.00058467,120]
[340634388,1729563043717,-253.88923684,0.00058467,120]
[340634389,1729563043728,-457.46955249,0.00058467,120]
[340634390,1729563043739,-4252.22205378,0.00058467,120]
[340634391,1729563043750,-630.99339394,0.00058467,120]
[340634394,1729563044163,-802.09031807,0.00058467,120]
[340634395,1729563044174,-6180.65784,0.00058467,120]
[340634397,1729563046417,-674.5000605,0.00058467,120]
[340634398,1729563046615,-2500.0,0.00058368,2]
[340634399,1729563046625,-4256.3,0.00058467,120]
[340634400,1729563061414,300.0,0.00019725,2]
[340634401,1729563130855,1817.55716481,0.00025,120]
[340634403,1729563340554,163.16,0.00010959,2]
[340634404,1729563733467,250.0,0.0001,2]
[340634405,1729563734541,300.0,0.00012,2]
[340634406,1729563735657,350.0,0.00014,2]
[340634407,1729563908181,12100.0,0.00011,2]
[340634408,1729563908215,50000.0,0.00011,2]
[340634409,1729563908247,50000.0,0.00011,2]
[340634410,1729563908279,50000.0,0.00011,2]
[340634411,1729563908311,50000.0,0.00011,2]
[340634412,1729563908346,50000.0,0.00011,2]
[340634413,1729563908375,429815.0,0.00011,2]
[340634420,1729564033116,300.0,0.000102,3]
[340634421,1729564033471,283.68,0.00023,60]
[340634423,1729564035379,600.0,0.000103,3]
[340634424,1729564037450,900.0,0.000104,3]
[340634425,1729564039546,1200.0,0.000105,3]
[340634426,1729564041700,1500.0,0.000106,3]
[340634427,1729564043844,300.0,0.000107,3]
[340634428,1729564045948,300.0,0.000108,3]
[340634429,1729564048042,300.0,0.000109,3]
[340634430,1729564070766,156.4175748,0.00022,120]
[340634431,1729564079537,52799.9821993,0.000145,3]
[340634434,1729564101690,1099.12088794,0.00025,120]
[340634437,1729564231525,-1466.14126311,0.000109,2]
[340634445,1729564231656,-460.43123519,0.000109,2]
[340634446,1729564231667,-1398.79248795,0.000109,2]
[340634447,1729564231784,-682.19,0.000109,2]
[340634448,1729564231797,-1530.12866605,0.000109,2]
[340634449,1729564231810,-170.68113818,0.000109,2]
[340634450,1729564231820,-158.4614651,0.000109,2]
[340634451,1729564231832,-141.63112318,0.000109,2]
[340634452,1729564231842,-158.36887682,0.000109,2]
[340634453,1729564231853,-945.68881018,0.000109,2]
[340634454,1729564231863,-158.86,0.00010959,2]
[340634455,1729564231873,-232.23014121,0.0001099,2]
[340634456,1729564231883,-150.0,0.00010999,2]
[340634457,1729564231893,-309.06302198,0.00010999,2]
[340634458,1729564231903,-94701.94955522,0.00011,2]
[340634459,1729564231919,-1677.4496528,0.00011,2]
[340634460,1729564231930,-3168.51029453,0.00011,2]
[340634461,1729564237609,-4291.10587882,0.00011,2]
[340634467,1729564237762,-4392.91305409,0.00011,2]
[340634468,1729564237776,-566.68732454,0.00011,2]
[340634469,1729564237787,-4461.84790807,0.00011,2]
[340634470,1729564237797,-5533.35431226,0.00011,2]
[340634471,1729564237810,-279.36,0.00011,2]
[340634472,1729564237821,-16559.58406349,0.00011,2]
[340634473,1729564237831,-1068.72250076,0.00011,2]
[340634474,1729564237842,-31245.35164621,0.00011,2]
[340634475,1729564237853,-1065.57084264,0.00011,2]
[340634476,1729564237864,-26588.59255049,0.00011,2]
[340634477,1729564237875,-30739.11134819,0.00011,2]
[340634478,1729564237887,-1051.74850456,0.00011,2]
[340634479,1729564237898,-264.24,0.00011,2]
[340634480,1729564237908,-29013.05014,0.00011,2]
[340634481,1729564237920,-1698.02186945,0.00011,2]
[340634482,1729564237931,-540.65357155,0.00011,2]
[340634483,1729564237941,-33119.6434447,0.00011,2]
[340634484,1729564238106,-1022940.33900008,0.00011,2]
[340634485,1729564238117,-1002.10843179,0.00011,2]
[340634486,1729564239544,-1367.76559331,0.00011,2]
[340634488,1729564239557,-5456.23636126,0.00011,2]
[340634489,1729564239569,-3504.1443,0.00011,2]
[340634490,1729564239678,-937103.59271065,0.00011,2]
[340634491,1729564239691,-1544.24763781,0.00011,2]
[340634492,1729564239702,-1008.91552831,0.00011,2]
[340634493,1729564239714,-3868.2,0.00011,2]
[340634494,1729564239869,-883.29999,0.00011,2]
[340634495,1729564239880,-665.08488647,0.00011,2]
[340634496,1729564239891,-1818.9,0.00011,2]
[340634497,1729564239903,-205576.13397112,0.00011,2]
[340634498,1729564239914,-3705.05,0.00011,2]
[340634499,1729564239947,-3706.39038869,0.00011,2]
[340634500,1729564239958,-337.55851746,0.00011,2]
[340634501,1729564242550,-653.31270692,0.00011,2]
[340634506,1729564242678,-55625.94710524,0.00011,2]
[340634507,1729564242690,-1079.31918,0.00011,2]
[340634508,1729564242877,-688.31260271,0.00011,2]
[340634509,1729564242889,-265.6000002,0.00011,2]
[340634510,1729564242900,-71830.29231519,0.00011,2]
[340634511,1729564242948,-377.11693109,0.00011,2]
[340634557,1729564245612,-11970.09052708,0.00011,2]
[340634558,1729564245625,-21064.44619476,0.00011,2]
[340634559,1729564245640,-6074.499065,0.00011,2]
[340634560,1729564245651,-611.7165479,0.00011,2]
[340634561,1729564245663,-668.30843146,0.00011,2]
[340634562,1729564245724,-55015.04586621,0.00011,2]
[340634563,1729564245740,-522.01898272,0.00011,2]
[340634564,1729564245751,-66847.00997046,0.00011,2]
[340634565,1729564245763,-416.0689448,0.00011,2]
[340634566,1729564245775,-815.6971792,0.00011,2]
[340634567,1729564245838,-973.24910627,0.00011,2]
[340634568,1729564245849,-343.53915486,0.00011,2]
[340634569,1729564245945,-53516.89759504,0.00011,2]
[340634574,1729564459278,-1603.93063142,0.000109,2]
[340634575,1729564459298,-200.06172552,0.000109,2]
[340634576,1729564459319,-500.0,0.00010999,2]
[340634577,1729564459340,-500.0,0.00010999,2]
[340634578,1729564459361,-500.0,0.00010999,2]
[340634579,1729564459382,-500.0,0.00010999,2]
[340634580,1729564459404,-536.39088956,0.00010999,2]
[340634581,1729564459429,-776022.6167535,0.00011,2]
[340634582,1729564533030,1200.0,0.000103,3]
[340634583,1729564535169,2400.0,0.000104,3]
[340634584,1729564537224,3600.0,0.000105,3]
[340634585,1729564539844,4900.0,0.000106,3]
[340634586,1729564541932,6100.0,0.000107,3]
[340634587,1729564544033,1200.0,0.000108,3]
[340634588,1729564546162,1200.0,0.000109,3]
[340634594,1729565237907,183.19,0.0001051,2]
[340634601,1729565431822,-527.674,0.0001068,2]
[340634604,1729565432042,-319.86038199,0.0001068,2]
[340634605,1729565432054,-397.08384421,0.0001068,2]
[340634606,1729565432065,-5982.8069157,0.0001068,2]
[340634607,1729565432075,-400.12,0.00010736,2]
[340634608,1729565432083,-681.9214993,0.0001078,2]
[340634609,1729565432093,-258.76851609,0.0001078,2]
[340634610,1729565432178,-1.88500351,0.0001078,2]
[340634611,1729565432189,-485.4799811,0.0001078,2]
[340634612,1729565432202,-174.293,0.0001078,2]
[340634613,1729565432211,-150.0,0.00010899,2]
[340634614,1729565432220,-768.78458705,0.000109,2]
[340634615,1729565432231,-822.5,0.000109,2]
[340634616,1729565432243,-133.17271295,0.000109,2]
[340634617,1729565432252,-190.68890705,0.000109,2]
[340634619,1729565432263,-796.60499295,0.000109,2]
[340634620,1729565432271,-2510.3722,0.000109,2]
[340634621,1729565432282,-3231.41548908,0.000109,2]
[340634622,1729565432337,-683.3945,0.000109,2]
[340634623,1729565432347,-1817.0535657,0.000109,2]
[340634625,1729565437896,-896.54677076,0.000109,2]
[340634626,1729565437907,-1216.02192436,0.000109,2]
[340634627,1729565437919,-849.39240122,0.000109,2]
[340634629,1729565439895,-3249.95340702,0.000109,2]
[340634630,1729565439906,-745.99127552,0.000109,2]
[340634631,1729565439918,-758.79780336,0.000109,2]
[340634632,1729565439929,-5060.71156713,0.000109,2]
[340634633,1729565439940,-526.41,0.000109,2]
[340634634,1729565440093,-306.09729367,0.000109,2]
[340634635,1729565440104,-3835.80015978,0.000109,2]
[340634636,1729565440226,-2000.0,0.000109,2]
[340634662,1729565442954,-291.59768324,0.000109,2]
[340634664,1729565442966,-288.84508435,0.000109,2]
[340634670,1729565443094,-349.66746063,0.000109,2]
[340634671,1729565443215,-36145.17031418,0.000109,2]
[340634672,1729565443226,-10581.08636633,0.000109,2]
[340634680,1729565445870,-1323.4,0.000109,2]
[340634681,1729565445882,-4855.4545189,0.000109,2]
[340634683,1729565537957,250.0,0.0001,2]
[340634684,1729565741510,-150.0,0.00010651,2]
[340634685,1729565741531,-300.0,0.00010799,2]
[340634686,1729565741555,-403.772,0.000108,2]
[340634687,1729565741575,-146.228,0.000108,2]
[340634688,1729565742750,-1000.0,0.000108,2]
[340634689,1729565743644,-1000.0,0.000108,2]
[340634690,1729565744585,-1000.0,0.000108,2]
[340634691,1729565745503,-1000.0,0.000108,2]
[340634692,1729565746710,-1000.0,0.000108,2]
[340634693,1729565747750,-1000.0,0.000108,2]
[340634694,1729565748711,-1000.0,0.000108,2]
[340634695,1729565749715,-1000.0,0.000108,2]
[340634696,1729565750706,-295.1647,0.000108,2]
[340634697,1729565750726,-704.8353,0.0001089,2]
[340634698,1729565751778,-1000.0,0.0001089,2]
[340634699,1729565752817,-109.1647,0.0001089,2]
[340634700,1729565752838,-150.0,0.00010899,2]
[340634701,1729565752858,-740.8353,0.000109,2]
[340634702,1729565753891,-1000.0,0.000109,2]
[340634703,1729565755261,-1000.0,0.000109,2]
[340634704,1729565756368,-1000.0,0.0001079,2]
[340634705,1729565757429,-1000.0,0.0001079,2]
[340634706,1729565758567,-1000.0,0.0001079,2]
[340634707,1729565759727,-748.77673309,0.0001079,2]
[340634708,1729565759748,-251.22326691,0.000109,2]
[340634709,1729565760792,-1000.0,0.000109,2]
[340634710,1729565761902,-300.0,0.00010899,2]
[340634711,1729565761922,-700.0,0.000109,2]
[340634712,1729565763129,-1000.0,0.000109,2]
[340634713,1729565764185,-1000.0,0.000109,2]
[340634714,1729565765340,-1000.0,0.000109,2]
[340634715,1729565766879,-1000.0,0.000109,2]
[340634716,1729565768298,-1000.0,0.000109,2]
[340634717,1729565769511,-1000.0,0.000109,2]
[340634718,1729565770521,-1000.0,0.000109,2]
[340634719,1729565771524,-1000.0,0.000109,2]
[340634720,1729565772583,-1000.0,0.000109,2]
[340634721,1729565777540,-500.0,0.000109,2]
[340634722,1729565777968,177.07,9.593e-05,2]
[340634723,1729565924439,474.5,9.883e-05,2]
[340634724,1729566032986,160.56,9.316e-05,2]
[340634726,1729566311568,177.07,9.206e-05,2]
[340634731,1729566436380,476.11,9.23e-05,2]
[340634748,1729566547172,2425.8,9.904e-05,2]
[340634760,1729566632156,-173.623447,0.000107,2]
[340634761,1729566632166,-127.6666426,0.000108,2]
[340634762,1729566632177,-372.3333574,0.000108,2]
[340634763,1729566632186,-267.33031064,0.000108,2]
[340634764,1729566632197,-232.66968936,0.000108,2]
[340634765,1729566632206,-483.04067465,0.00010899,2]
[340634766,1729566632217,-2109.43741355,0.00010899,2]
[340634767,1729566632228,-3200.38448012,0.00010899,2]
[340634768,1729566632237,-127.57678527,0.00010899,2]
[340634769,1729566632249,-22.42321473,0.00010899,2]
[340634770,1729566632258,-1530.00038127,0.000109,2]